Cogmind - Beta 14 *** ADVENTURER MODE // 2024.08.17 @ 15:44:29 Player: Bob Result: Self-destructed Performance ------------- Evolutions (3) 1500 Regions Visited (6) 1200 Robots Destroyed (65) 325 Value Destroyed (2012) 2012 Prototype IDs (3) 60 Alien Tech Used (0) 0 Bonus (434) 434 TOTAL SCORE: 5531 Bonus ------- High Alert Combat Kills 155 Follower Combat Kills 279 Cogmind --------- Core Integrity 621/700 Matter 183/300 Energy 6/100 System Corruption 1% Temperature Cool (0) Movement Hovering (116) Ox1 Location -7/Factory Parts ------- > --- POWER (1) -------- (None) > --- PROPULSION (4) --- Gravmag System Gravmag System Gravmag System Gravmag System > --- UTILITY (6) ------ Cooling System Medium Storage Unit Improved Signal Interpreter Transmission Jammer System Shield > --- WEAPON (2) ------- Pulse Rifle Heavy Laser > --- INVENTORY (10) --- Light Nuclear Core Gravmag System Advanced Terrain Scan Processor ECM Suite System Shield Improved Grenade Launcher Remote Datajack Plasma Cutter Shock Maul Peak State ------------ > --- POWER ------------ Improved Deuterium Engine > --- PROPULSION ------- Gravmag System Gravmag System Gravmag System Gravmag System > --- UTILITY ---------- Cooling System Medium Storage Unit Improved Signal Interpreter Advanced Targeting Computer Transmission Jammer System Shield > --- WEAPON ----------- Pulse Rifle Heavy Laser > --- INVENTORY -------- Gravmag System Gravmag System Advanced Terrain Scan Processor ECM Suite High-powered Tractor Beam Improved Grenade Launcher Improved Datajack Plasma Cutter Shock Maul [Rating: 46] Favorites ----------- Power Improved Deuterium Engine Engine Improved Deuterium Engine Propulsion Armored Wheel Leg Carbon-fiber Leg Wheel Armored Wheel Hover Unit Gravmag System Utility Medium Storage Unit Device Sensor Array Storage Medium Storage Unit Processor Advanced Targeting Computer Hackware System Shield Protection Improved Light Armor Plating Weapon Improved Light Cannon Energy Gun EM Pulse Gun Ballistic Gun Minigun Ballistic Cannon Improved Light Cannon Special Weapon Plasma Cutter Special Melee Weapon Improved Datajack Build | -11 -10 -10 -9 -9 -8 -7 ------- Run | Yrd Mat Min Mat Sto Mat Fac Slots Evolved 6 | . . . 2 . 2 2 Power . | . . . . . . . Propulsion 2 | . . . 2 . . . Utility 4 | . . . . . 2 2 Weapon . | . . . . . . . Parts Attached 66 | 6 14 . 5 12 12 17 Power 6 | 1 1 . 1 2 1 . Engine 6 | 1 1 . 1 2 1 . Core . | . . . . . . . Reactor . | . . . . . . . Propulsion 17 | 2 4 . 2 . 2 7 Treads . | . . . . . . . Leg 2 | . . . . . 2 . Wheel 8 | 2 4 . 2 . . . Hover 7 | . . . . . . 7 Flight . | . . . . . . . Utility 13 | 1 3 . . . 6 3 Device 6 | . 2 . . . 1 3 Storage 2 | 1 1 . . . . . Processor 2 | . . . . . 2 . Hackware 1 | . . . . . 1 . Protection 2 | . . . . . 2 . Artifact . | . . . . . . . Weapon 30 | 2 6 . 2 10 3 7 Energy Gun 11 | 2 3 . . . . 6 Energy Cannon . | . . . . . . . Ballistic Gun 2 | . . . . . 2 . Ballistic Cannon 13 | . 3 . 2 7 1 . Launcher . | . . . . . . . Special Weapon 3 | . . . . 3 . . Impact Weapon . | . . . . . . . Slashing Weapon . | . . . . . . . Piercing Weapon . | . . . . . . . Special Melee Weapon 1 | . . . . . . 1 Unidentified Prototypes 1 | . . . . 1 . . Parts Lost 9 | . . . . 1 6 2 Power 2 | . . . . 1 . 1 Propulsion 4 | . . . . . 3 1 Utility 2 | . . . . . 2 . Weapon 1 | . . . . . 1 . Highest Loss Streak 6 | . . . . 1 6 2 To Critical Strikes . | . . . . . . . Average Slot Usage (%) 93 | . 94 100 100 97 86 88 Engine 10 | . 14 14 11 8 9 6 Leg 2 | . . . . . 7 4 Wheel 25 | . 28 28 44 44 18 . Hover 4 | . . . . . . 20 Device 10 | . 8 14 11 11 4 11 Storage 10 | . 14 14 11 11 9 7 Processor 4 | . . . . . 11 12 Hackware 2 | . . . . . 3 7 Energy Gun 6 | . 24 . . . . 8 Ballistic Gun 2 | . . . . . 10 4 Ballistic Cannon 10 | . 3 28 22 16 7 . Special Weapon 1 | . . . . 5 . . Peak Build Rating 46 | 6 10 11 18 19 30 46 Average Rating 19 | 3 7 10 16 17 24 36 On Entrance 12 | . 6 10 11 18 19 25 Naked Turns . | . . . . . . . Heaviest Build 34 | 14 20 20 26 26 34 31 Greatest Support 48 | 26 26 24 48 48 48 36 Greatest Overweight (x) 3 | . . . . . 2 3 Average Overweight (x) . | . . . . . . . Largest Inventory Capacity 10 | 8 10 10 10 10 10 10 Average Capacity 9 | 6 9 10 10 10 10 10 Most Carried 10 | 3 10 10 10 10 10 10 Average Carried 8 | . 7 9 8 9 9 8 Final Capacity 10 | 8 10 10 10 10 10 10 Final Carried 10 | . 10 10 10 10 8 9 Class Distribution -------------------- 62% | Mutant 26% | Hacker-Mutant 10% | Commander-Mutant Dominant Class ---------------- Mutant | -10/Materials Mutant | -10/Mines Mutant | -9/Materials Mutant | -9/Storage Mutant | -8/Materials Hacker-Mutant | -7/Factory Resources | -11 -10 -10 -9 -9 -8 -7 ----------- Run | Yrd Mat Min Mat Sto Mat Fac Matter Collected 1530 | 204 145 91 241 474 325 50 Remotely . | . . . . . . . Salvage Created 2036 | . 483 53 308 704 353 135 Parts 109 | . 18 4 25 41 16 5 Haulers Intercepted 6 | . 2 . 2 1 1 . Recyclers Shooed . | . . . . . . . Parts Field Recycled . | . . . . . . . Retrieved Matter . | . . . . . . . Parts Self-Destructed . | . . . . . . . Prevented . | . . . . . . . Kills | -11 -10 -10 -9 -9 -8 -7 ------- Run | Yrd Mat Min Mat Sto Mat Fac Combat Hostiles Destroyed 51 | . 6 2 10 19 11 3 Guns 14 | . 5 . . . 6 3 Cannons 36 | . . 2 10 19 5 . Classes Destroyed 10 | . 4 . 4 . 1 1 Worker 1 | . 1 . . . . . Builder 1 | . . . 1 . . . Hauler 6 | . 2 . 2 1 1 . Watcher 6 | . 3 . 2 . 1 . Swarmer 11 | . . . 3 3 5 . Grunt 22 | . 6 2 2 8 4 . Brawler 1 | . . . 1 . . . Sentry 14 | . . . 4 8 1 1 Hunter 1 | . . . . . 1 . Programmer 2 | . . . . . . 2 Best Kill Streak 9 | . 5 1 9 5 4 1 Combat Bots Only 5 | . 3 1 5 5 4 1 Max Kills in Single Turn 2 | . 2 1 1 1 1 1 Gunslinging . | . . . . . . . Exploded . | . . . . . . . Melee . | . . . . . . . Uniques/NPCs Destroyed . | . . . . . . . Combat | -11 -10 -10 -9 -9 -8 -7 -------- Run | Yrd Mat Min Mat Sto Mat Fac Hostile Shots Fired 308 | . 29 2 33 62 91 91 Missed 110 | . 10 2 8 23 21 46 Damage Taken 2019 | . 193 . 239 372 733 482 Core 229 | . 19 . 7 65 59 79 Absorbed by Shields . | . . . . . . . Ignored by Resistances 609 | . 62 . 72 111 219 145 Core Remaining (%) 90 | 100 . 92 . 82 89 . Volleys Fired 170 | . 36 3 39 34 30 28 Largest 2 | . 2 2 2 2 2 2 Hottest 132 | . 80 70 78 78 78 132 Shots Fired 323 | . 68 6 78 66 58 47 Gun 145 | . 64 . . . 34 47 Cannon 174 | . 4 6 78 62 24 . Launcher . | . . . . . . . Special 4 | . . . . 4 . . Kinetic 208 | . 4 6 78 62 58 . Thermal 44 | . . . . 4 . 40 Explosive . | . . . . . . . Electromagnetic 71 | . 64 . . . . 7 Robot Hit Streak 39 | . 16 4 12 12 39 17 Robot Miss Streak 5 | . 2 1 5 2 2 2 Penetration Max . | . . . . . . . Secondary Targets 2 | . . . . . 1 1 Max Gunslinging Chain 1 | . . . . . 1 1 Shots Hit Robots 239 | . 50 4 50 42 48 45 Core Hits 96 | . 21 2 18 22 21 12 Critical Kills . | . . . . . . . Critical Parts Destroyed . | . . . . . . . Critical Strikes 11 | . 3 . 1 4 2 1 Burn 1 | . . . . . . 1 Blast 8 | . 1 . 1 4 2 . Corrupt 2 | . 2 . . . . . Melee Attacks 4 | . . . . . . 4 Impact . | . . . . . . . Slashing . | . . . . . . . Piercing . | . . . . . . . Sneak Attacks 3 | . . . . . . 3 Combat Hostiles . | . . . . . . . Follow-up Attacks . | . . . . . . . Damage Inflicted 4357 | . 812 71 1025 879 869 701 Guns 1938 | . 702 . . . 535 701 Cannons 2352 | . 53 71 1025 869 334 . Explosions 57 | . 57 . . . . . Melee . | . . . . . . . Ramming . | . . . . . . . Kinetic 2887 | . 53 71 1025 869 869 . Thermal 754 | . 57 . . 10 . 687 Explosive . | . . . . . . . Electromagnetic 716 | . 702 . . . . 14 Impact . | . . . . . . . Slashing . | . . . . . . . Piercing . | . . . . . . . Highest Corruption 1 | . . . . . . 1 Average Corruption 1 | . . . . . . 1 Corruption Purged . | . . . . . . . Corruption Blocked . | . . . . . . . Overload Shots . | . . . . . . . Overflow Damage 33 | . . . 23 . 10 . Projectiles 33 | . . . 23 . 10 . Explosions . | . . . . . . . Melee . | . . . . . . . Knockbacks 16 | . 2 . 8 2 4 . Impact . | . . . . . . . Kinetic 15 | . 1 . 8 2 4 . Secondary 1 | . 1 . . . . . Self-Inflicted Damage . | . . . . . . . Shots . | . . . . . . . Rammed . | . . . . . . . Targets Rammed . | . . . . . . . Kicked . | . . . . . . . Crushed . | . . . . . . . Highest Temperature 375 | . 153 18 108 375 190 244 Average Temperature 46 | . 55 9 23 49 48 71 Received Heat Transfer 888 | . 162 . 72 177 360 117 Siege Activations . | . . . . . . . Robots Corrupted 2 | . 2 . . . . . Combat Hostiles 1 | . 1 . . . . . Parts Fried 5 | . 5 . . . . . Impact Corruptions . | . . . . . . . Robots Melted . | . . . . . . . Combat Hostiles . | . . . . . . . Parts Melted 4 | . . . . . . 4 Heat Transferred 1456 | . 50 . . 37 . 1369 Parts Sabotaged . | . . . . . . . Parts Stolen . | . . . . . . . Parts Stripped . | . . . . . . . Power Chain Reactions 1 | . 1 . . . . . Alert | -11 -10 -10 -9 -9 -8 -7 ------- Run | Yrd Mat Min Mat Sto Mat Fac Peak Influence 861 | . 242 40 399 861 508 202 Initial 309 | . . . . 71 309 142 Average 212 | . 121 9 155 500 373 74 Maximum Alert Level 3 | . 1 . 1 3 2 1 Low Security (%) 63 | 100 96 100 70 10 . 99 Level 1 16 | . 3 . 29 11 68 . Level 2 17 | . . . . 67 31 . Level 3 1 | . . . . 10 . . Level 4 . | . . . . . . . Level 5 . | . . . . . . . High Security . | . . . . . . . Max Security . | . . . . . . . Squads Dispatched 18 | . 1 1 1 6 4 5 Investigation 7 | . 1 1 . 3 . 2 Extermination 2 | . . . . . . 2 Reinforcement 5 | . . . 1 2 1 1 Assault . | . . . . . . . Garrison 4 | . . . . 1 3 . Intercept . | . . . . . . . Searches Triggered . | . . . . . . . Construction Impeded 1 | . . . 1 . . . Haulers Reinforced . | . . . . . . . Active Scanning Responses . | . . . . . . . Cargo Convoy Interrupts . | . . . . . . . Stealth | -11 -10 -10 -9 -9 -8 -7 --------- Run | Yrd Mat Min Mat Sto Mat Fac Distress Signals 8 | . 1 . 3 2 2 . Communications Jammed 2 | . . . . . . 2 Distress Signals 2 | . . . . . . 2 Times Spotted 85 | . 12 2 16 25 21 9 Peak Tracking Total 8 | . 4 1 5 6 8 5 Tactical Retreats 6 | . 1 . 1 3 1 . Traps | -11 -10 -10 -9 -9 -8 -7 ------- Run | Yrd Mat Min Mat Sto Mat Fac Traps Triggered 5 | . 1 . . 1 . 3 Indirectly . | . . . . . . . Trap Hack Attempts . | . . . . . . . Triggered . | . . . . . . . Disarmed . | . . . . . . . Reprogrammed . | . . . . . . . Reused . | . . . . . . . Traps Extracted . | . . . . . . . Installed . | . . . . . . . Triggered . | . . . . . . . Machines | -11 -10 -10 -9 -9 -8 -7 ---------- Run | Yrd Mat Min Mat Sto Mat Fac Machines Disabled 9 | . 1 . . 7 1 . Max in Single Turn 1 | . 1 . . 1 1 . Machines Repaired . | . . . . . . . Machines Dismantled 7 | . . . . 7 . . Machines Sabotaged . | . . . . . . . Overloaded Fab Kills . | . . . . . . . Hacking | -11 -10 -10 -9 -9 -8 -7 --------- Run | Yrd Mat Min Mat Sto Mat Fac Machines Accessed 11 | . 3 2 . 3 2 1 Terminals 10 | . 3 1 . 3 2 1 Fabricators . | . . . . . . . Repair Stations . | . . . . . . . Recycling Units . | . . . . . . . Scanalyzers . | . . . . . . . Garrison Access . | . . . . . . . Total Hacks 21 | . 4 2 . 7 6 2 Successful 10 | . 3 2 . 1 4 . Failed 11 | . 1 . . 6 2 2 Catastrophic 1 | . . . . 1 . . Database Lockouts . | . . . . . . . Manual . | . . . . . . . Terminals 20 | . 4 1 . 7 6 2 Fabricators . | . . . . . . . Repair Stations . | . . . . . . . Recycling Units . | . . . . . . . Scanalyzers . | . . . . . . . Garrison Access . | . . . . . . . Terminal Hacks 10 | . 3 2 . 1 4 . Record 2 | . . . . . 2 . Prototype ID Bank 1 | . 1 . . . . . Open Door 2 | . . 1 . 1 . . Level Access Points 1 | . . 1 . . . . Maintenance Status 1 | . 1 . . . . . Registered Components 2 | . 1 . . . 1 . Zone Layout 1 | . . . . . 1 . Fabricator Hacks . | . . . . . . . Repair Station Hacks . | . . . . . . . Recycling Unit Hacks . | . . . . . . . Scanalyzer . | . . . . . . . Garrison Access Hacks . | . . . . . . . Unauthorized Hacks . | . . . . . . . Terminals . | . . . . . . . Fabricators . | . . . . . . . Repair Stations . | . . . . . . . Recycling Units . | . . . . . . . Scanalyzers . | . . . . . . . Garrison Access . | . . . . . . . Data Cores Recovered . | . . . . . . . Used . | . . . . . . . Hacking Detections 6 | . 1 . . 2 2 1 Full Trace Events 2 | . . . . 2 . . Feedback Events . | . . . . . . . Feedback Blocked . | . . . . . . . Robot Schematics Acquired . | . . . . . . . Robots Built . | . . . . . . . Authchips . | . . . . . . . Time . | . . . . . . . Total Robot Build Rating . | . . . . . . . Part Schematics Acquired . | . . . . . . . Parts Built . | . . . . . . . Authchips . | . . . . . . . Time . | . . . . . . . Total Part Build Rating . | . . . . . . . Parts Repaired . | . . . . . . . Time . | . . . . . . . Parts Recycled . | . . . . . . . Recycled Matter . | . . . . . . . Retrieved Matter . | . . . . . . . Retrieved Components . | . . . . . . . Parts Scanalyzed . | . . . . . . . Part Schematics Acquired . | . . . . . . . Parts Damaged . | . . . . . . . Bothacking | -11 -10 -10 -9 -9 -8 -7 ------------ Run | Yrd Mat Min Mat Sto Mat Fac Used RIF Installer . | . . . . . . . Robots Hacked 3 | . . . . . . 3 Non-combat 3 | . . . . . . 3 Combat . | . . . . . . . Robot Hacks Applied 4 | . . . . . . 4 parse_system 1 | . . . . . . 1 no_distress 2 | . . . . . . 2 find_chute 1 | . . . . . . 1 Relay Couplers Released . | . . . . . . . Fabnet Peak Effective % . | . . . . . . . Robots Rewired . | . . . . . . . Allies Hacked . | . . . . . . . Hacks Repelled . | . . . . . . . Allies | -11 -10 -10 -9 -9 -8 -7 -------- Run | Yrd Mat Min Mat Sto Mat Fac Total Allies 10 | . . . . 10 . . Largest Group 10 | . . . . 10 8 . Highest-Rated Group 88 | . . . . 88 71 . Highest-Rated Ally 16 | . . . . 16 16 . Total Orders . | . . . . . . . Ally Attacks 124 | . . . . 58 66 . Total Damage 1021 | . . . . 523 498 . Kills 12 | . . . . 8 4 . Allies Corrupted . | . . . . . . . Allies Melted . | . . . . . . . Intel | -11 -10 -10 -9 -9 -8 -7 ------- Run | Yrd Mat Min Mat Sto Mat Fac Robot Analysis Total . | . . . . . . . Derelict Logs Recovered 1 | . . 1 . . . . Drone Launches . | . . . . . . . Drone Recoveries . | . . . . . . . Exploration | -11 -10 -10 -9 -9 -8 -7 ------------- Run | Yrd Mat Min Mat Sto Mat Fac Turns Passed 3953 | 43 810 477 416 780 581 846 Spaces Moved 3428 | 38 789 513 283 545 362 898 Core 7 | 7 . . . . . . Treads . | . . . . . . . Legs 267 | . . . . . 128 139 Wheels 2395 | 31 789 513 283 545 234 . Hover 759 | . . . . . . 759 Flight . | . . . . . . . Fastest Speed 48 | 50 80 90 90 90 90 48 Average Speed 86 | 82 83 90 90 90 126 70 Slowest Speed 240 | 90 90 90 90 90 190 240 Overloaded Moves . | . . . . . . . Propulsion Burnouts . | . . . . . . . Robots Hopped . | . . . . . . . Cave-ins Triggered . | . . . . . . . Exploration Rate (%) 46 | 4 87 85 27 77 23 23 Regions Visited 6 Branch Regions 2 Pre-discovered Areas 2 | . . 2 . . . . Known Exits Taken 2 | . . 1 . . 1 . Unknown Exits Taken 4 | 1 1 . 1 1 . . Scrap Searched 1 | . . 1 . . . . Spaces Dug . | . . . . . . . Terrain Destroyed 8 | . 4 . 2 2 . . Melee . | . . . . . . . Projectile 4 | . . . 2 2 . . AOE 4 | . 4 . . . . . Terrain Rammed . | . . . . . . . Walls Destroyed . | . . . . . . . Machines Disabled . | . . . . . . . Actions | -11 -10 -10 -9 -9 -8 -7 --------- Run | Yrd Mat Min Mat Sto Mat Fac Total 3991 | 49 875 523 368 671 434 1071 Wait 173 | . 7 2 28 27 17 92 Move 3422 | 37 788 512 282 544 361 898 Hop . | . . . . . . . Pick Up 60 | 6 19 3 8 1 7 16 Fast Attach 9 | . 3 . . 2 3 1 Attach 25 | 6 2 . 2 . 4 11 Detach 2 | . . . . . . 2 Swap 32 | . 9 . 3 10 5 5 Drop 47 | . 11 3 6 6 7 14 Fire 170 | . 36 3 39 34 30 28 Melee 4 | . . . . . . 4 Ram . | . . . . . . . Kick . | . . . . . . . Crush . | . . . . . . . Escape Stasis . | . . . . . . . Rewire 1 | . . . . 1 . . Trap . | . . . . . . . Miscellaneous 46 | . . . . 46 . . Route ------- -11/Scrapyard -10/Materials (discovered 3 exits: *Mat x2 / *Min) -10/Mines (discovered 2 exits: *Mat x2) -9/Materials (discovered 2 exits: *Mat / *Sto) -9/Storage -8/Materials -7/Factory History --------- Turn | Location | Event 31 | -11/Scrapyard | Discovered new exit (range 15) 44 | -11/Scrapyard | Entered Materials 300 | -10/Materials | Build established: Mutant 304 | -10/Materials | Discovered new exit (range 16) 529 | -10/Materials | Discovered new exit (range 15) 693 | -10/Materials | Discovered new exit (range 8) 854 | -10/Materials | Entered Mines 857 | -10/Mines | Met a Derelict shopkeep closing up shop 1004 | -10/Mines | Found a hidden stash of uninstalled traps 1055 | -10/Mines | Identified exit to Materials 1272 | -10/Mines | Learned location of Storage (-9) 1331 | -10/Mines | Entered Materials 1331 | -9/Materials | Evolved 2 slots: Propulsion x2 1547 | -9/Materials | Discovered new exit (range 16) 1723 | -9/Materials | Discovered new exit (range 9) 1747 | -9/Materials | Entered Storage 2256 | -9/Storage | Assisted by bots powering up and referring to "LRC-V3" 2461 | -9/Storage | Garrison activated, responded to threat 2470 | -9/Storage | Discovered new exit (range 16) 2527 | -9/Storage | Entered Materials 2527 | -8/Materials | Accompanied by 8 allies 2527 | -8/Materials | Evolved 2 slots: Utility x2 2558 | -8/Materials | Build established: Commander-Mutant 2710 | -8/Materials | Lost 5 allies 2732 | -8/Materials | Garrison activated, responded to threat 2785 | -8/Materials | Lost 3 allies 2861 | -8/Materials | Lost 6 parts (3n2u1w) 2925 | -8/Materials | Discovered new exit (range 4) 2941 | -8/Materials | Identified exit to Factory 3108 | -8/Materials | Entered Factory 3108 | -7/Factory | Evolved 2 slots: Utility x2 3205 | -7/Factory | Build established: Hacker-Mutant 3954 | -7/Factory | Self-destructed Last Messages --------------- area. 03868_ Proton Bomb Trap short circuited. 03868_ A bubble of electromagnetic force engulfs the area. 03868_ Proton Bomb Trap short circuited. 03868_ A bubble of electromagnetic force engulfs the area. 03870_ K-01 Serf collects debris. 03871_ W-25 Informer distress signal jammed. 03871_ K-01 Serf collects debris. 03871_ W-25 Informer distress signal jammed. 03874_ K-01 Serf collects debris. 03925_ Melted Mic. Nuclear Core. 03925_ Melted Shock Rifle. 03928_ P-60 Hacker destroyed. 03928_ Switching to secondary target: G-47 Trooper. 03929_ Imp. Deuterium Engine destroyed. 03931_ K-01 Serf collects debris. 03939_ Gravmag System destroyed. 03940_ K-01 Serf collects debris. Map ----- +----------------------------------------------------+ | """ #??????????# #???????????????????????? | | """ #??????????# #???????????????????????? | | """ #?????????## ##??????????????????????? | | #?????????# #??????????????????????? | | +################ [ #??##??????????????????? | | = ##T ###????????????????? | | ???????????????? | | % ???????????????? | | ^ ???????????????? | | ??????????????? | | ############## ???????????????? | | #????????????# ######?????????????????? | | #????????????### #######??????????????????????? | | #??????????????# #????????????????????????????? | | #??????????????# #????????????????????????????? | | #??????????????# #????????????????????????????? | | #??????????????# #????????????????????????????? | | #??????????????# #???##############???????????? | | #??????????????# #???# #???????????? | | ??????????????# #???# #???????????? | | ???????????????# #???# #???????????? | | ???????????????# ##### #???????????? | | ??????????????????# k # #???????????? | | ??????????????????# g# #???????????? | | ??????????????????# g% ! #???????????? | | ??????????????????# #@ #???????????? | | ??????????????????# # ! #???????????? | | ??????????????????# # #???????????? | | ??????????????????# # #???????????? | | ??????????????????# # #???????????? | | ??????????????????# ##############???????????? | | ??????????????????# #????????????????????????? | | ??????????????????# +????????????????????????? | | ??????????????????# #????????????????????????? | | ??????????????????# #????????????????????????? | | ??????????????????# #????????????????????????? | | ??????????????????# #????????????????????????? | | ??????????????????# #????????????????????????? | | ??????????????????# #????????????????????????? | | ??????????????????? ?????????????????????????? | | ?????????????????????????????????????????????????? | | ?????????????????????????????????????????????????? | | ?????????????????????????????????????????????????? | | ?????????????????????????????????????????????????? | | ?????????????????????????????????????????????????? | | ?????????????????????????????????????????????????? | | ?????????????????????????????????????????????????? | | ?????????????????????????????????????????????????? | | ?????????????????????????????????????????????????? | | ?????????????????????????????????????????????????? | +----------------------------------------------------+ Best States ------------- Heat Dissipation 56 Energy Generation 16 Energy Capacity 290 Matter Stores 300 Matter Capacity 300 Sight Range 16 Robot Scan Range 15 Terrain Scan Density 10 ECM Strength 1 Jamming Range 12 Armor Coverage 150 Resistance: KI 20 Resistance: TH 20 Resistance: EX 20 Resistance: EM 20 Resistance: I 20 Resistance: S 20 Resistance: P 20 Evasion (%) 55 Targeting Accuracy 8 Offensive Hacking 10 Defensive Hacking 10 Item Schematics ----------------- None Robot Schematics ------------------ None Fabricated ------------ Nothing Alien Tech Used ----------------- None Achievements -------------- Party Time Challenges ------------ None Game ------ Seed AccelerationShrapnelThrower Manual? 0 Play Time 00:37:40 Cumulative 201.0 hours Start 2024.08.17 @ 00:53:34 End 2024.08.17 @ 15:44:29 Sessions 2 Manual Loads 0 Difficulty Adventurer Special Mode None Game No. 300 Rogue 241 Adventurer 59 Explorer 0 Win Type - Total 5 Types 2/1/0/2/0/0/0/0/0 Lore% 32 Gallery% 58 Achievement% 55 Wizard Run 0 Options --------- Layout 1 ASCII 0 Keyboard 0 Movement Arrows Keybinds 0 Fullscreen 1 Font 16/SmallcapsGlow Map View 55x38 Zoom Use 0% Tactical HUD 1 Map Filters NONE Filters NONE Steam 1 RUN: ea0e0443-9918-48c5-8c18-37d52c719dd1